[Event "Late-Titled-Tuesday-Blitz-June-18-2024"]
[Site "Chess.com"]
[Date "2024.06.18"]
[Round "1"]
[White "alexrustemov"]
[Black "Tolya2"]
[Result "1-0"]
[WhiteElo "2862"]
[BlackElo "2478"]
[TimeControl "180+1"]
[EndTime "14:08:19 PDT"]
[Termination "alexrustemov won on time"]

1. d4 {[%clk 0:03:00.9]} 1... d5 {[%clk 0:02:58.9]} 2. c4 {[%clk 0:03:00.7]}
2... dxc4 {[%clk 0:02:58.8]} 3. Nf3 {[%clk 0:02:59.9]} 3... a6 {[%clk
0:02:58.6]} 4. e3 {[%clk 0:02:59.7]} 4... Nf6 {[%clk 0:02:58.3]} 5. Bxc4 {[%clk
0:02:58.8]} 5... e6 {[%clk 0:02:58.9]} 6. O-O {[%clk 0:02:58.7]} 6... c5 {[%clk
0:02:59.4]} 7. e4 {[%clk 0:02:59.2]} 7... b5 {[%clk 0:02:57.5]} 8. Bd3 {[%clk
0:02:58.7]} 8... cxd4 {[%clk 0:02:57.1]} 9. a4 {[%clk 0:02:56.5]} 9... b4 {[%clk
0:02:54.4]} 10. e5 {[%clk 0:02:52.8]} 10... Nd5 {[%clk 0:02:53.4]} 11. Nbd2
{[%clk 0:02:52.3]} 11... Bb7 {[%clk 0:02:52]} 12. Ne4 {[%clk 0:02:44.1]} 12...
Nd7 {[%clk 0:02:49.8]} 13. Bg5 {[%clk 0:02:41.6]} 13... Qb6 {[%clk 0:02:45.5]}
14. a5 {[%clk 0:02:39.8]} 14... Qa7 {[%clk 0:02:41.3]} 15. Qd2 {[%clk
0:02:38.8]} 15... h6 {[%clk 0:02:40.2]} 16. Bh4 {[%clk 0:02:38.7]} 16... Qb8
{[%clk 0:02:38.8]} 17. Bg3 {[%clk 0:02:28.8]} 17... Be7 {[%clk 0:02:31.9]} 18.
Nd6+ {[%clk 0:02:28.5]} 18... Bxd6 {[%clk 0:02:30.3]} 19. exd6 {[%clk
0:02:29.4]} 19... Qa7 {[%clk 0:02:29.4]} 20. Bc4 {[%clk 0:02:23.6]} 20... O-O
{[%clk 0:02:21.6]} 21. Nxd4 {[%clk 0:02:20.7]} 21... Rac8 {[%clk 0:02:17.8]} 22.
Rfc1 {[%clk 0:02:16.2]} 22... N7f6 {[%clk 0:02:11.8]} 23. Bd3 {[%clk 0:02:03.8]}
23... Rcd8 {[%clk 0:01:58]} 24. h3 {[%clk 0:01:59.1]} 24... Rd7 {[%clk
0:01:56.7]} 25. Rc4 {[%clk 0:01:50.3]} 25... Rfd8 {[%clk 0:01:54.1]} 26. Nc6
{[%clk 0:01:47.7]} 26... Bxc6 {[%clk 0:01:51.9]} 27. Rxc6 {[%clk 0:01:48.6]}
27... Ne8 {[%clk 0:01:42.7]} 28. Rxa6 {[%clk 0:01:44.9]} 28... Qb7 {[%clk
0:01:32.8]} 29. Bf1 {[%clk 0:01:35.3]} 29... Nxd6 {[%clk 0:01:31.3]} 30. Rxd6
{[%clk 0:01:34.8]} 30... Rxd6 {[%clk 0:01:30.6]} 31. Bxd6 {[%clk 0:01:35.3]}
31... Rxd6 {[%clk 0:01:30.7]} 32. a6 {[%clk 0:01:35.2]} 32... Qa7 {[%clk
0:01:28.2]} 33. Qc2 {[%clk 0:01:31.7]} 33... g6 {[%clk 0:01:21.7]} 34. g3 {[%clk
0:01:30.4]} 34... Rd7 {[%clk 0:01:15.6]} 35. Qc4 {[%clk 0:01:28.4]} 35... Rc7
{[%clk 0:01:13.4]} 36. Qd3 {[%clk 0:01:23.5]} 36... h5 {[%clk 0:01:07]} 37. h4
{[%clk 0:01:23.1]} 37... Kg7 {[%clk 0:01:03.9]} 38. Be2 {[%clk 0:01:22.2]} 38...
Rc6 {[%clk 0:00:58.1]} 39. Ra4 {[%clk 0:01:17.6]} 39... Nc7 {[%clk 0:00:47.2]}
40. Rxb4 {[%clk 0:01:09.7]} 40... Qc5 {[%clk 0:00:38.6]} 41. Ra4 {[%clk
0:01:01]} 41... Qc1+ {[%clk 0:00:31.6]} 42. Kg2 {[%clk 0:01:00.1]} 42... Nxa6
{[%clk 0:00:28.7]} 43. Rxa6 {[%clk 0:00:56.1]} 43... Rxa6 {[%clk 0:00:28]} 44.
Qxa6 {[%clk 0:00:56.6]} 44... Qxb2 {[%clk 0:00:28.1]} 45. Qb5 {[%clk 0:00:55.2]}
45... Qc3 {[%clk 0:00:26.8]} 46. Qd3 {[%clk 0:00:54.2]} 46... Qb2 {[%clk
0:00:26.4]} 47. Kf3 {[%clk 0:00:54.1]} 47... Qa1 {[%clk 0:00:26]} 48. Ke3 {[%clk
0:00:53.4]} 48... Qe5+ {[%clk 0:00:25.4]} 49. Qe4 {[%clk 0:00:51.8]} 49... Qc3+
{[%clk 0:00:25.5]} 50. Bd3 {[%clk 0:00:51.3]} 50... Qc1+ {[%clk 0:00:23.6]} 51.
Ke2 {[%clk 0:00:50.1]} 51... Qb2+ {[%clk 0:00:22.6]} 52. Bc2 {[%clk 0:00:50.2]}
52... Qc3 {[%clk 0:00:21.7]} 53. Qd3 {[%clk 0:00:49.8]} 53... Qe5+ {[%clk
0:00:20.5]} 54. Kd2 {[%clk 0:00:50.5]} 54... Kg8 {[%clk 0:00:16.7]} 55. Qe3
{[%clk 0:00:49]} 55... Qd5+ {[%clk 0:00:16.1]} 56. Ke2 {[%clk 0:00:47.4]} 56...
Qb5+ {[%clk 0:00:14.7]} 57. Bd3 {[%clk 0:00:46.9]} 57... Qb2+ {[%clk 0:00:14.3]}
58. Qd2 {[%clk 0:00:46.5]} 58... Qe5+ {[%clk 0:00:13.5]} 59. Kf1 {[%clk
0:00:45.2]} 59... Qd4 {[%clk 0:00:12.8]} 60. Qe3 {[%clk 0:00:44.4]} 60... Qa1+
{[%clk 0:00:12.4]} 61. Kg2 {[%clk 0:00:44.5]} 61... Kg7 {[%clk 0:00:12.7]} 62.
f3 {[%clk 0:00:44.1]} 62... Qb2+ {[%clk 0:00:12.5]} 63. Be2 {[%clk 0:00:42.7]}
63... Qa1 {[%clk 0:00:10]} 64. g4 {[%clk 0:00:42.4]} 64... hxg4 {[%clk
0:00:10.1]} 65. fxg4 {[%clk 0:00:43.1]} 65... Qf6 {[%clk 0:00:08.7]} 66. Kg3
{[%clk 0:00:42.3]} 66... Qb2 {[%clk 0:00:08.5]} 67. h5 {[%clk 0:00:39.1]} 67...
gxh5 {[%clk 0:00:08.4]} 68. gxh5 {[%clk 0:00:37.1]} 68... Qf6 {[%clk 0:00:08.2]}
69. Bg4 {[%clk 0:00:31.5]} 69... Qb2 {[%clk 0:00:05.7]} 70. Qg5+ {[%clk
0:00:30.9]} 70... Kf8 {[%clk 0:00:03.7]} 71. h6 {[%clk 0:00:31.4]} 71... Qc3+
{[%clk 0:00:01.7]} 72. Bf3 {[%clk 0:00:31.6]} 1-0

[Event "Late-Titled-Tuesday-Blitz-June-18-2024"]
[Site "Chess.com"]
[Date "2024.06.18"]
[Round "1"]
[White "Faqade"]
[Black "sari07"]
[Result "1/2-1/2"]
[WhiteElo "2654"]
[BlackElo "2369"]
[TimeControl "180+1"]
[EndTime "14:08:19 PDT"]
[Termination "Game drawn by repetition"]

1. d4 {[%clk 0:02:58.4]} 1... d5 {[%clk 0:02:59.6]} 2. c4 {[%clk 0:02:57.2]}
2... c6 {[%clk 0:03:00]} 3. Nf3 {[%clk 0:02:56.5]} 3... Nf6 {[%clk 0:02:59.9]}
4. g3 {[%clk 0:02:56.4]} 4... dxc4 {[%clk 0:02:56.6]} 5. Bg2 {[%clk 0:02:55.9]}
5... g6 {[%clk 0:02:55.8]} 6. Na3 {[%clk 0:02:54.4]} 6... Bg7 {[%clk 0:02:37.2]}
7. Nxc4 {[%clk 0:02:53.4]} 7... O-O {[%clk 0:02:34.6]} 8. O-O {[%clk 0:02:52.7]}
8... Be6 {[%clk 0:02:32.4]} 9. Nfe5 {[%clk 0:02:52.1]} 9... Bd5 {[%clk
0:02:30.3]} 10. f3 {[%clk 0:02:51.7]} 10... Nfd7 {[%clk 0:02:21]} 11. e4 {[%clk
0:02:47]} 11... Nxe5 {[%clk 0:02:21]} 12. Nxe5 {[%clk 0:02:47.7]} 12... Be6
{[%clk 0:01:50.7]} 13. Be3 {[%clk 0:02:43.1]} 13... Nd7 {[%clk 0:01:38.8]} 14.
Nd3 {[%clk 0:02:38.6]} 14... Bc4 {[%clk 0:01:31.6]} 15. b3 {[%clk 0:02:38.4]}
15... Ba6 {[%clk 0:01:25.2]} 16. Rc1 {[%clk 0:02:36.6]} 16... e5 {[%clk
0:01:21]} 17. dxe5 {[%clk 0:01:53.4]} 17... Nxe5 {[%clk 0:01:18]} 18. Nxe5
{[%clk 0:01:53.2]} 18... Bxf1 {[%clk 0:01:10]} 19. Nxc6 {[%clk 0:01:52.7]} 19...
bxc6 {[%clk 0:00:56.7]} 20. Bxf1 {[%clk 0:01:34.4]} 20... Qxd1 {[%clk
0:00:56.4]} 21. Rxd1 {[%clk 0:01:33.4]} 21... Rfd8 {[%clk 0:00:57.3]} 22. Rc1
{[%clk 0:01:30.1]} 22... Bd4 {[%clk 0:00:57.5]} 23. Kf2 {[%clk 0:01:29.5]} 23...
c5 {[%clk 0:00:53.5]} 24. Bc4 {[%clk 0:01:25.5]} 24... Rd6 {[%clk 0:00:48.3]}
25. Bd5 {[%clk 0:01:22.1]} 25... Re8 {[%clk 0:00:37.7]} 26. Bxd4 {[%clk
0:01:18.6]} 26... cxd4 {[%clk 0:00:38.6]} 27. Rc7 {[%clk 0:01:16]} 27... Rxd5
{[%clk 0:00:35]} 28. exd5 {[%clk 0:01:15.8]} 28... d3 {[%clk 0:00:35.5]} 29. Rc3
{[%clk 0:01:12.7]} 29... Re2+ {[%clk 0:00:29.2]} 30. Kf1 {[%clk 0:01:06.3]}
30... Kf8 {[%clk 0:00:28]} 31. d6 {[%clk 0:01:01.1]} 31... Ke8 {[%clk
0:00:27.1]} 32. Rxd3 {[%clk 0:00:54.3]} 32... Rxh2 {[%clk 0:00:27.2]} 33. Rc3
{[%clk 0:00:48.5]} 33... Rxa2 {[%clk 0:00:22]} 34. Rc7 {[%clk 0:00:47.7]} 34...
h5 {[%clk 0:00:19.4]} 35. Re7+ {[%clk 0:00:45.2]} 35... Kf8 {[%clk 0:00:17]} 36.
Rb7 {[%clk 0:00:44.8]} 36... Ke8 {[%clk 0:00:16.9]} 37. Ke1 {[%clk 0:00:44.5]}
37... a5 {[%clk 0:00:15.4]} 38. Re7+ {[%clk 0:00:42.3]} 38... Kf8 {[%clk
0:00:15]} 39. Ra7 {[%clk 0:00:42]} 39... Ke8 {[%clk 0:00:15.6]} 40. b4 {[%clk
0:00:40.7]} 40... a4 {[%clk 0:00:15.8]} 41. Re7+ {[%clk 0:00:40.1]} 41... Kf8
{[%clk 0:00:15.4]} 42. Ra7 {[%clk 0:00:38.4]} 42... Ke8 {[%clk 0:00:15.7]} 43.
b5 {[%clk 0:00:37]} 43... Rb2 {[%clk 0:00:12.7]} 44. Re7+ {[%clk 0:00:36.2]}
44... Kf8 {[%clk 0:00:12.3]} 45. Rb7 {[%clk 0:00:26.7]} 45... Ke8 {[%clk
0:00:12.4]} 46. b6 {[%clk 0:00:26.5]} 46... a3 {[%clk 0:00:12.8]} 47. Re7+
{[%clk 0:00:24.3]} 47... Kd8 {[%clk 0:00:12.6]} 48. Ra7 {[%clk 0:00:12.8]} 48...
a2 {[%clk 0:00:12.8]} 49. b7 {[%clk 0:00:09.6]} 49... Rxb7 {[%clk 0:00:13.4]}
50. Rxa2 {[%clk 0:00:09.4]} 50... Kd7 {[%clk 0:00:14.1]} 51. Ra6 {[%clk
0:00:08.9]} 51... Ke6 {[%clk 0:00:10.1]} 52. Ke2 {[%clk 0:00:05.6]} 52... Rd7
{[%clk 0:00:10.1]} 53. Ke3 {[%clk 0:00:06]} 53... Rxd6 {[%clk 0:00:10.6]} 54.
Ra7 {[%clk 0:00:06.6]} 54... Rb6 {[%clk 0:00:11]} 55. Rc7 {[%clk 0:00:06.3]}
55... Rb3+ {[%clk 0:00:10.9]} 56. Kf2 {[%clk 0:00:06.6]} 56... Rb4 {[%clk
0:00:11.5]} 57. Ke3 {[%clk 0:00:06.7]} 57... Ra4 {[%clk 0:00:12.2]} 58. Kf2
{[%clk 0:00:06.7]} 58... Kf6 {[%clk 0:00:12.8]} 59. Rb7 {[%clk 0:00:06.9]} 59...
Kf5 {[%clk 0:00:13.1]} 60. Rb5+ {[%clk 0:00:07]} 60... Ke6 {[%clk 0:00:13.3]}
61. Rb6+ {[%clk 0:00:07.9]} 61... Ke5 {[%clk 0:00:13.3]} 62. Rb7 {[%clk
0:00:08.8]} 62... f6 {[%clk 0:00:12.6]} 63. Rb5+ {[%clk 0:00:08.5]} 63... Ke6
{[%clk 0:00:12.6]} 64. Rb6+ {[%clk 0:00:09.4]} 64... Kf7 {[%clk 0:00:12.8]} 65.
Rb7+ {[%clk 0:00:09.8]} 65... Ke6 {[%clk 0:00:12.1]} 66. Rb6+ {[%clk 0:00:10.2]}
66... Ke7 {[%clk 0:00:12.3]} 67. Rb7+ {[%clk 0:00:10.6]} 67... Ke6 {[%clk
0:00:09.9]} 68. Rb6+ {[%clk 0:00:10.8]} 1/2-1/2

[Event "Late-Titled-Tuesday-Blitz-June-18-2024"]
[Site "Chess.com"]
[Date "2024.06.18"]
[Round "1"]
[White "laskakid"]
[Black "GianmarcoVaR"]
[Result "0-1"]
[WhiteElo "2381"]
[BlackElo "2707"]
[TimeControl "180+1"]
[EndTime "14:08:20 PDT"]
[Termination "GianmarcoVaR won by checkmate"]

1. Nf3 {[%clk 0:02:58.7]} 1... g6 {[%clk 0:02:50.2]} 2. e4 {[%clk 0:02:57.7]}
2... Bg7 {[%clk 0:02:50.8]} 3. d4 {[%clk 0:02:58]} 3... d6 {[%clk 0:02:51.4]} 4.
Bc4 {[%clk 0:02:58]} 4... Nf6 {[%clk 0:02:48.2]} 5. Qe2 {[%clk 0:02:58.2]} 5...
c6 {[%clk 0:02:28]} 6. e5 {[%clk 0:02:55.3]} 6... dxe5 {[%clk 0:02:27.5]} 7.
dxe5 {[%clk 0:02:55.3]} 7... Nd5 {[%clk 0:02:27.5]} 8. h3 {[%clk 0:02:47.3]}
8... O-O {[%clk 0:02:21.4]} 9. O-O {[%clk 0:02:47.1]} 9... Qc7 {[%clk
0:01:30.6]} 10. Re1 {[%clk 0:02:39.3]} 10... a5 {[%clk 0:00:24.1]} 11. a4 {[%clk
0:02:23.1]} 11... Na6 {[%clk 0:00:23.9]} 12. Nbd2 {[%clk 0:01:59.5]} 12... Nc5
{[%clk 0:00:23.9]} 13. Nf1 {[%clk 0:01:52.7]} 13... Nb6 {[%clk 0:00:18.8]} 14.
Be3 {[%clk 0:01:35.5]} 14... Nxc4 {[%clk 0:00:18.7]} 15. Qxc4 {[%clk 0:01:35.7]}
15... Ne6 {[%clk 0:00:18.2]} 16. Bd2 {[%clk 0:01:22.7]} 16... b6 {[%clk
0:00:17.9]} 17. Bc3 {[%clk 0:01:21.6]} 17... Ba6 {[%clk 0:00:18.3]} 18. Qg4
{[%clk 0:01:17.9]} 18... Rad8 {[%clk 0:00:16.3]} 19. Ng3 {[%clk 0:01:11.4]}
19... Bc8 {[%clk 0:00:12]} 20. Qc4 {[%clk 0:00:59.1]} 20... h6 {[%clk
0:00:06.7]} 21. h4 {[%clk 0:00:58.1]} 21... Kh7 {[%clk 0:00:05]} 22. h5 {[%clk
0:00:56.2]} 22... Nc5 {[%clk 0:00:02.1]} 23. hxg6+ {[%clk 0:00:53.7]} 23... fxg6
{[%clk 0:00:03]} 24. e6 {[%clk 0:00:27.1]} 24... Rf4 {[%clk 0:00:02.7]} 25. Qe2
{[%clk 0:00:16.2]} 25... Bxc3 {[%clk 0:00:02.8]} 26. bxc3 {[%clk 0:00:16.2]}
26... Bxe6 {[%clk 0:00:03.5]} 27. Nd4 {[%clk 0:00:15.1]} 27... Bd5 {[%clk
0:00:02.6]} 28. Qxe7+ {[%clk 0:00:14.8]} 28... Qxe7 {[%clk 0:00:02.8]} 29. Rxe7+
{[%clk 0:00:15.4]} 29... Kg8 {[%clk 0:00:01.9]} 30. Rae1 {[%clk 0:00:15]} 30...
Rdf8 {[%clk 0:00:02.4]} 31. f3 {[%clk 0:00:14.1]} 31... Nxa4 {[%clk 0:00:02.9]}
32. Rc7 {[%clk 0:00:12.5]} 32... R4f6 {[%clk 0:00:02.3]} 33. Ree7 {[%clk
0:00:11.2]} 33... R8f7 {[%clk 0:00:02.5]} 34. Re8+ {[%clk 0:00:06.3]} 34... Kg7
{[%clk 0:00:02.6]} 35. Rcc8 {[%clk 0:00:06.7]} 35... Rf8 {[%clk 0:00:03.2]} 36.
Re7+ {[%clk 0:00:06.4]} 36... R6f7 {[%clk 0:00:03.7]} 37. Rxf7+ {[%clk
0:00:05.5]} 37... Rxf7 {[%clk 0:00:03.5]} 38. Nxc6 {[%clk 0:00:06.1]} 38... Nxc3
{[%clk 0:00:01.6]} 39. Ne5 {[%clk 0:00:05.7]} 39... Re7 {[%clk 0:00:01.1]} 40.
f4 {[%clk 0:00:04.5]} 40... Nb5 {[%clk 0:00:01.3]} 41. Rb8 {[%clk 0:00:03.9]}
41... Nd4 {[%clk 0:00:01.1]} 42. Rxb6 {[%clk 0:00:03.9]} 42... Ra7 {[%clk
0:00:01.4]} 43. Rxg6+ {[%clk 0:00:03.7]} 43... Kh7 {[%clk 0:00:02.1]} 44. Nh5
{[%clk 0:00:04.1]} 44... Bc4 {[%clk 0:00:01]} 45. Nf6+ {[%clk 0:00:04.2]} 45...
Kh8 {[%clk 0:00:01.9]} 46. Rxh6+ {[%clk 0:00:04.3]} 46... Kg7 {[%clk 0:00:02.1]}
47. Rg6+ {[%clk 0:00:04.8]} 47... Kf8 {[%clk 0:00:01.1]} 48. Rh6 {[%clk
0:00:04.5]} 48... Bg8 {[%clk 0:00:01.1]} 49. Nxg8 {[%clk 0:00:04]} 49... Kxg8
{[%clk 0:00:01.3]} 50. Rg6+ {[%clk 0:00:04.1]} 50... Kh7 {[%clk 0:00:01.5]} 51.
Rf6 {[%clk 0:00:04.3]} 51... Ne2+ {[%clk 0:00:02]} 52. Kf2 {[%clk 0:00:04.2]}
52... Nc3 {[%clk 0:00:02.9]} 53. g4 {[%clk 0:00:03.6]} 53... Ne4+ {[%clk
0:00:03.1]} 54. Ke3 {[%clk 0:00:03.1]} 54... Nxf6 {[%clk 0:00:04]} 55. g5 {[%clk
0:00:03.5]} 55... Nh5 {[%clk 0:00:04.2]} 56. Ke4 {[%clk 0:00:03.3]} 56... a4
{[%clk 0:00:04.7]} 57. Kf5 {[%clk 0:00:03.6]} 57... a3 {[%clk 0:00:05.1]} 58.
g6+ {[%clk 0:00:04.2]} 58... Kg8 {[%clk 0:00:05.1]} 59. Kg5 {[%clk 0:00:05.1]}
59... a2 {[%clk 0:00:05.4]} 60. f5 {[%clk 0:00:05.4]} 60... a1=Q {[%clk
0:00:05.8]} 61. f6 {[%clk 0:00:06]} 61... Qxe5+ {[%clk 0:00:06]} 62. Kh6 {[%clk
0:00:05.6]} 62... Qf4+ {[%clk 0:00:06.4]} 63. Kxh5 {[%clk 0:00:05.2]} 63... Ra5#
{[%clk 0:00:07.3]} 0-1

[Event "Late-Titled-Tuesday-Blitz-June-18-2024"]
[Site "Chess.com"]
[Date "2024.06.18"]
[Round "1"]
[White "Bugcrusher"]
[Black "HamedWafa4"]
[Result "1-0"]
[WhiteElo "2386"]
[BlackElo "2662"]
[TimeControl "180+1"]
[EndTime "14:08:20 PDT"]
[Termination "Bugcrusher won by resignation"]

1. d4 {[%clk 0:02:51.9]} 1... Nf6 {[%clk 0:02:58.7]} 2. c4 {[%clk 0:02:50.3]}
2... e6 {[%clk 0:02:56.4]} 3. Nf3 {[%clk 0:02:48.3]} 3... Bb4+ {[%clk
0:02:48.7]} 4. Nbd2 {[%clk 0:02:47]} 4... b6 {[%clk 0:02:41.9]} 5. a3 {[%clk
0:02:46.6]} 5... Bxd2+ {[%clk 0:02:31.8]} 6. Nxd2 {[%clk 0:02:45.2]} 6... Bb7
{[%clk 0:02:31.8]} 7. e3 {[%clk 0:02:45.3]} 7... O-O {[%clk 0:02:29.7]} 8. f3
{[%clk 0:02:44.5]} 8... d5 {[%clk 0:02:28.7]} 9. Bd3 {[%clk 0:02:36.6]} 9... c5
{[%clk 0:02:25.4]} 10. dxc5 {[%clk 0:02:34.2]} 10... bxc5 {[%clk 0:02:24.4]} 11.
O-O {[%clk 0:02:33.1]} 11... Nbd7 {[%clk 0:02:17.5]} 12. b3 {[%clk 0:02:31.2]}
12... Ne5 {[%clk 0:02:14.5]} 13. Bb1 {[%clk 0:02:16]} 13... d4 {[%clk
0:02:12.6]} 14. e4 {[%clk 0:02:15.3]} 14... Ng6 {[%clk 0:02:11.3]} 15. g3 {[%clk
0:02:10.5]} 15... e5 {[%clk 0:02:05.1]} 16. Bd3 {[%clk 0:02:08.2]} 16... a5
{[%clk 0:02:04.1]} 17. Qe2 {[%clk 0:02:02.6]} 17... Ne8 {[%clk 0:02:02.7]} 18.
a4 {[%clk 0:02:00.8]} 18... Nd6 {[%clk 0:01:57.6]} 19. Nb1 {[%clk 0:02:00.2]}
19... Qe7 {[%clk 0:01:44.1]} 20. Na3 {[%clk 0:01:57.9]} 20... Rae8 {[%clk
0:01:43]} 21. Nb5 {[%clk 0:01:57]} 21... Qd7 {[%clk 0:01:16.2]} 22. Bd2 {[%clk
0:01:54.2]} 22... Ra8 {[%clk 0:01:08.9]} 23. Rae1 {[%clk 0:01:45.3]} 23... Ne7
{[%clk 0:01:02.7]} 24. f4 {[%clk 0:01:40.1]} 24... exf4 {[%clk 0:00:58.5]} 25.
gxf4 {[%clk 0:01:33.3]} 25... Nxb5 {[%clk 0:00:50.5]} 26. cxb5 {[%clk
0:01:26.1]} 26... f5 {[%clk 0:00:43.6]} 27. e5 {[%clk 0:01:21.1]} 27... Nd5
{[%clk 0:00:41.7]} 28. Kf2 {[%clk 0:01:12.5]} 28... Qe7 {[%clk 0:00:37]} 29. Rg1
{[%clk 0:01:00.2]} 29... Qh4+ {[%clk 0:00:35.1]} 30. Kf1 {[%clk 0:01:00.5]}
30... Qh3+ {[%clk 0:00:33]} 31. Kf2 {[%clk 0:00:50.6]} 31... Qxh2+ {[%clk
0:00:31.3]} 32. Rg2 {[%clk 0:00:50.1]} 32... Qxg2+ {[%clk 0:00:24.4]} 33. Kxg2
{[%clk 0:00:46.3]} 33... Nxf4+ {[%clk 0:00:25.3]} 34. Kg3 {[%clk 0:00:45.2]}
34... Nxe2+ {[%clk 0:00:25.3]} 35. Rxe2 {[%clk 0:00:43.2]} 35... Bd5 {[%clk
0:00:24.8]} 36. e6 {[%clk 0:00:41.3]} 36... g6 {[%clk 0:00:23.8]} 37. Re5 {[%clk
0:00:39.3]} 37... Bxb3 {[%clk 0:00:24.1]} 38. Rxc5 {[%clk 0:00:39.6]} 38... Bxe6
{[%clk 0:00:21.8]} 39. Rc7 {[%clk 0:00:38.2]} 39... Rac8 {[%clk 0:00:17.9]} 40.
Re7 {[%clk 0:00:37.8]} 40... Bc4 {[%clk 0:00:18.2]} 41. Bb1 {[%clk 0:00:36.5]}
41... Bb3 {[%clk 0:00:17.4]} 42. Bxa5 {[%clk 0:00:34.1]} 42... Bc2 {[%clk
0:00:17]} 43. Ba2+ {[%clk 0:00:33.6]} 43... Kh8 {[%clk 0:00:17.2]} 44. Bb6
{[%clk 0:00:33.3]} 44... f4+ {[%clk 0:00:13.4]} 45. Kh4 {[%clk 0:00:31.5]} 45...
Rfd8 {[%clk 0:00:06.9]} 46. Re8+ {[%clk 0:00:26.4]} 46... Kg7 {[%clk 0:00:05.3]}
47. Bxd8 {[%clk 0:00:25.7]} 47... d3 {[%clk 0:00:04.7]} 48. Bf6+ {[%clk
0:00:25.2]} 48... Kxf6 {[%clk 0:00:05.6]} 49. Rxc8 {[%clk 0:00:24.8]} 49... d2
{[%clk 0:00:06.5]} 50. Rd8 {[%clk 0:00:25.1]} 50... d1=Q {[%clk 0:00:07]} 51.
Rxd1 {[%clk 0:00:25.4]} 51... Bxd1 {[%clk 0:00:07.9]} 52. a5 {[%clk 0:00:25]}
52... g5+ {[%clk 0:00:08.5]} 53. Kh3 {[%clk 0:00:24.4]} 53... g4+ {[%clk
0:00:09.2]} 54. Kg2 {[%clk 0:00:24.3]} 54... f3+ {[%clk 0:00:09.8]} 55. Kg3
{[%clk 0:00:24.4]} 55... Kg5 {[%clk 0:00:10.4]} 56. b6 {[%clk 0:00:23.4]} 56...
h5 {[%clk 0:00:10.4]} 57. b7 {[%clk 0:00:23.7]} 57... h4+ {[%clk 0:00:11.3]} 58.
Kf2 {[%clk 0:00:24]} 58... g3+ {[%clk 0:00:11.9]} 59. Ke3 {[%clk 0:00:24.1]}
59... f2 {[%clk 0:00:11.6]} 60. Bc4 {[%clk 0:00:22.4]} 60... g2 {[%clk
0:00:11.8]} 61. Kxf2 {[%clk 0:00:21.7]} 61... h3 {[%clk 0:00:10.9]} 62. b8=Q
{[%clk 0:00:20.5]} 1-0

[Event "Late-Titled-Tuesday-Blitz-June-18-2024"]
[Site "Chess.com"]
[Date "2024.06.18"]
[Round "1"]
[White "OverallStranger"]
[Black "lupta_robin"]
[Result "1-0"]
[WhiteElo "2337"]
[BlackElo "2618"]
[TimeControl "180+1"]
[EndTime "14:08:22 PDT"]
[Termination "OverallStranger won by resignation"]

1. e4 {[%clk 0:03:00.9]} 1... Nc6 {[%clk 0:02:58.9]} 2. Nf3 {[%clk 0:03:00.7]}
2... d6 {[%clk 0:02:59.1]} 3. d4 {[%clk 0:02:59.7]} 3... Nf6 {[%clk 0:02:59.6]}
4. Nc3 {[%clk 0:02:59.9]} 4... g6 {[%clk 0:02:59.4]} 5. Be3 {[%clk 0:02:56.7]}
5... Bg7 {[%clk 0:02:58.7]} 6. Qd2 {[%clk 0:02:53.7]} 6... e5 {[%clk 0:02:13.8]}
7. dxe5 {[%clk 0:02:42.7]} 7... Nxe5 {[%clk 0:02:07.8]} 8. Nxe5 {[%clk
0:02:41.4]} 8... dxe5 {[%clk 0:02:08.2]} 9. Qxd8+ {[%clk 0:02:41.3]} 9... Kxd8
{[%clk 0:02:09.1]} 10. O-O-O+ {[%clk 0:02:38.6]} 10... Bd7 {[%clk 0:02:04.4]}
11. Bc4 {[%clk 0:02:32.4]} 11... Ke8 {[%clk 0:01:46.3]} 12. Nb5 {[%clk
0:02:08.6]} 12... Bxb5 {[%clk 0:01:39.2]} 13. Bxb5+ {[%clk 0:02:08.7]} 13... c6
{[%clk 0:01:39.9]} 14. Bd3 {[%clk 0:02:09]} 14... Ng4 {[%clk 0:01:35.6]} 15. Bc5
{[%clk 0:01:52.9]} 15... b6 {[%clk 0:01:35.1]} 16. h3 {[%clk 0:01:48.3]} 16...
Nf6 {[%clk 0:01:27.7]} 17. Be3 {[%clk 0:01:44.8]} 17... Ke7 {[%clk 0:01:22.1]}
18. Ba6 {[%clk 0:01:40.8]} 18... Rab8 {[%clk 0:01:14.2]} 19. f3 {[%clk
0:01:35.1]} 19... Rhd8 {[%clk 0:01:00.3]} 20. Rxd8 {[%clk 0:01:31.8]} 20... Rxd8
{[%clk 0:01:00]} 21. Rd1 {[%clk 0:01:32.6]} 21... Rxd1+ {[%clk 0:01:00.3]} 22.
Kxd1 {[%clk 0:01:33.1]} 22... Nh5 {[%clk 0:01:00.8]} 23. Ke2 {[%clk 0:01:28.8]}
23... Nf4+ {[%clk 0:01:00.3]} 24. Kf2 {[%clk 0:01:24.3]} 24... f6 {[%clk
0:00:56.3]} 25. a4 {[%clk 0:01:12.5]} 25... Kd6 {[%clk 0:00:55.6]} 26. a5 {[%clk
0:01:06.5]} 26... Kc7 {[%clk 0:00:55.5]} 27. Bc4 {[%clk 0:00:54.4]} 27... Bf8
{[%clk 0:00:53]} 28. axb6+ {[%clk 0:00:43.2]} 28... axb6 {[%clk 0:00:52.8]} 29.
Bg8 {[%clk 0:00:44.1]} 29... h6 {[%clk 0:00:52.8]} 30. Bf7 {[%clk 0:00:40.9]}
30... h5 {[%clk 0:00:33.9]} 31. g3 {[%clk 0:00:32.7]} 31... Nxh3+ {[%clk
0:00:32.7]} 32. Kg2 {[%clk 0:00:33.3]} 32... Ng5 {[%clk 0:00:33.2]} 33. Bxg6
{[%clk 0:00:32.2]} 33... Ne6 {[%clk 0:00:30]} 34. Bxh5 {[%clk 0:00:29.9]} 34...
Nd4 {[%clk 0:00:29.4]} 35. c3 {[%clk 0:00:24.7]} 35... Ne6 {[%clk 0:00:27.3]}
36. Bf7 {[%clk 0:00:24.8]} 36... Nc5 {[%clk 0:00:27.2]} 37. Bc4 {[%clk
0:00:23.9]} 37... b5 {[%clk 0:00:27]} 38. Be2 {[%clk 0:00:21.9]} 38... Na4
{[%clk 0:00:27.4]} 39. Bc1 {[%clk 0:00:21.5]} 39... Kd6 {[%clk 0:00:27.2]} 40.
Bd1 {[%clk 0:00:21.9]} 40... Ke6 {[%clk 0:00:26.5]} 41. Bb3+ {[%clk 0:00:21.4]}
41... Kd7 {[%clk 0:00:27]} 42. Bxa4 {[%clk 0:00:22]} 42... bxa4 {[%clk
0:00:27.1]} 43. Kf1 {[%clk 0:00:22.6]} 43... Bc5 {[%clk 0:00:27.2]} 44. Ke2
{[%clk 0:00:23.1]} 44... Ke6 {[%clk 0:00:26.6]} 45. Kd3 {[%clk 0:00:23.6]} 45...
Bf8 {[%clk 0:00:25.4]} 46. Kc4 {[%clk 0:00:23.3]} 46... f5 {[%clk 0:00:24.7]}
47. exf5+ {[%clk 0:00:23.1]} 47... Kxf5 {[%clk 0:00:24.9]} 48. Kd3 {[%clk
0:00:23.9]} 48... Bc5 {[%clk 0:00:24.3]} 49. Kc4 {[%clk 0:00:23.1]} 49... Bf2
{[%clk 0:00:24.2]} 50. g4+ {[%clk 0:00:23]} 50... Ke6 {[%clk 0:00:24.8]} 51. Kd3
{[%clk 0:00:23.9]} 51... Bc5 {[%clk 0:00:24.4]} 52. Ke4 {[%clk 0:00:24.5]} 52...
Be7 {[%clk 0:00:25]} 53. f4 {[%clk 0:00:21.8]} 53... exf4 {[%clk 0:00:24.4]} 54.
Bxf4 {[%clk 0:00:22]} 54... a3 {[%clk 0:00:23.2]} 55. bxa3 {[%clk 0:00:21.9]}
55... Bxa3 {[%clk 0:00:24.1]} 56. c4 {[%clk 0:00:22.4]} 56... Be7 {[%clk
0:00:23.6]} 57. Be3 {[%clk 0:00:22.5]} 57... Bd8 {[%clk 0:00:23]} 58. g5 {[%clk
0:00:22.9]} 58... Kf7 {[%clk 0:00:22.2]} 59. Kf5 {[%clk 0:00:22.9]} 59... Be7
{[%clk 0:00:22.4]} 60. g6+ {[%clk 0:00:23.3]} 60... Kg8 {[%clk 0:00:20.9]} 61.
Ke6 {[%clk 0:00:22]} 61... Bf8 {[%clk 0:00:21.5]} 62. Bd4 {[%clk 0:00:21]} 62...
Bb4 {[%clk 0:00:19.2]} 63. c5 {[%clk 0:00:19.3]} 63... Kf8 {[%clk 0:00:13.4]}
64. Kf6 {[%clk 0:00:16.3]} 64... Ba5 {[%clk 0:00:12]} 65. Kg5 {[%clk 0:00:16.2]}
65... Bd2+ {[%clk 0:00:11.5]} 66. Kf6 {[%clk 0:00:16.3]} 66... Kg8 {[%clk
0:00:10.7]} 67. Ke6 {[%clk 0:00:14.4]} 67... Bb4 {[%clk 0:00:08]} 68. Kd6 {[%clk
0:00:12.1]} 1-0